bitfinex/quotes_SOLUSD_20260105
["timestamp","ask_amount","ask_price","bid_price","bid_amount"]
[1767591920148,2.32742046,135.84,135.81,0.68162241]
[1767591920353,2.32742046,135.84,135.81,8.04470208]
[1767591921084,0.68221806,135.86,135.81,8.04470208]
[1767591921252,2.32742046,135.84,135.82,0.68162241]
[1767591922377,2.32742046,135.83,135.82,0.68162241]
[1767591922879,0.68221806,135.86,135.82,0.68162241]
[1767591923084,2.32742046,135.84,135.82,0.68162241]
[1767591924181,2.32742046,135.83,135.82,0.68162241]
[1767591925986,2.32742046,135.83,135.81,7.36307967]
[1767591927584,0.099,135.85,135.81,7.36307967]
[1767591927770,2.32742046,135.83,135.81,7.36307967]
[1767591927970,2.32742046,135.83,135.81,8.04470208]
[1767591928171,0.099,135.85,135.81,8.04470208]
[1767591928492,2.32742046,135.83,135.81,8.04470208]
[1767591928990,0.099,135.85,135.81,8.04470208]
[1767591929167,2.32742046,135.83,135.81,8.04470208]
[1767591929690,0.099,135.85,135.81,8.04470208]
[1767591929879,2.32742046,135.83,135.81,8.04470208]
[1767591930373,2.32742046,135.83,135.82,0.68162241]
[1767591930774,0.099,135.85,135.82,0.68162241]
[1767591931088,2.32742046,135.83,135.82,0.68162241]
[1767591932477,3.64124497,135.84,135.82,0.68162241]
[1767591934995,0.099,135.85,135.82,0.68162241]
[1767591935196,3.64124497,135.84,135.82,0.68162241]
[1767591936092,0.099,135.85,135.82,0.68162241]
[1767591936294,3.64124497,135.85,135.82,0.68162241]
[1767591937190,0.70001452,135.85,135.82,0.68162241]
[1767591937394,4.34125949,135.85,135.82,0.68162241]
[1767591938299,0.70001452,135.85,135.82,0.68162241]
[1767591938499,4.34125949,135.85,135.82,0.68162241]
[1767591939889,3.64124497,135.84,135.82,0.68162241]
[1767591940483,0.70001452,135.85,135.82,0.68162241]
[1767591940683,3.64124497,135.84,135.82,0.68162241]
[1767591941210,4.34125949,135.84,135.81,62.4]
[1767591941381,4.34125949,135.84,135.81,63.06612762]
[1767591941999,3.64124497,135.84,135.82,0.66612762]
[1767591942509,0.70001452,135.85,135.82,0.66612762]
[1767591942685,4.34125949,135.85,135.82,0.66612762]
[1767591945703,4.34125949,135.85,135.81,69.76306262]
[1767591945704,4.34125949,135.83,135.8,8.02983613]
[1767591946005,0.70001452,135.82,135.78,66.24124497]
[1767591946184,0.70001452,135.82,135.78,63.26612762]
[1767591946385,3.64124497,135.83,135.79,0.66612762]
[1767591946806,4.34125949,135.82,135.79,0.66612762]
[1767591947007,4.34125949,135.82,135.78,0.86612762]
[1767591947505,4.34125949,135.82,135.79,0.66612762]
[1767591948006,0.70001452,135.82,135.79,0.61267835]
[1767591948180,4.34125949,135.82,135.79,0.61267835]
[1767591948601,0.70001452,135.82,135.79,0.61267835]
[1767591948899,4.34125949,135.82,135.79,0.61267835]
[1767591951701,0.70001452,135.82,135.79,0.61267835]
[1767591951907,4.34125949,135.82,135.79,0.61267835]
[1767591954306,0.70001452,135.81,135.78,69.96473005]
[1767591955203,4.34125949,135.81,135.78,69.96473005]
[1767591955382,0.70001452,135.8,135.78,69.96473005]
[1767591955589,0.48161089,135.8,135.78,69.96473005]
[1767591955782,3.64124497,135.8,135.78,0.2]
[1767591956887,3.64124497,135.79,135.76,0.2]
[1767591957084,3.64124497,135.78,135.76,0.86612762]
[1767591957697,3.64124497,135.77,135.75,0.2]
[1767591957897,3.64124497,135.77,135.75,0.86612762]
[1767591958102,0.31727522,135.79,135.75,0.86612762]
[1767591958103,3.64124497,135.78,135.75,0.86612762]
[1767591958613,3.61124498,135.78,135.75,0.86612762]
[1767591958912,3.64124497,135.77,135.75,0.86612762]
[1767591961519,3.64124497,135.78,135.75,0.86612762]
[1767591961816,3.64124497,135.77,135.75,0.86612762]
[1767591963215,3.95633743,135.77,135.75,0.2]
[1767591963415,3.64124497,135.76,135.75,0.2]
[1767591963591,7.68049628,135.77,135.74,0.67977256]
[1767591963796,3.64124497,135.76,135.74,0.67977256]
[1767591964911,3.61124498,135.76,135.74,0.67977256]
[1767591965809,3.64124497,135.75,135.74,0.67977256]
[1767591966102,3.61124498,135.75,135.74,0.67977256]
[1767591966304,3.41124499,135.75,135.73,0.2]
[1767591966709,3.41124499,135.75,135.74,0.67977256]
[1767591966913,3.41124499,135.75,135.73,0.87977256]
[1767591967212,3.64124497,135.75,135.73,0.87977256]
[1767591967820,3.64124497,135.75,135.74,0.67977256]
[1767591968807,3.64124497,135.75,135.73,0.2]
[1767591969014,0.099,135.76,135.73,0.87977256]
[1767591969214,3.64124497,135.75,135.73,0.87977256]
[1767591969436,3.64124497,135.74,135.72,0.2]
[1767591969615,3.64124497,135.73,135.71,0.87977256]
[1767591971013,0.31295314,135.73,135.71,0.2]
[1767591971213,3.64124497,135.72,135.7,0.2]
[1767591971397,3.64124497,135.71,135.7,0.2]
[1767591972910,3.64124497,135.72,135.7,0.87977256]
[1767591973215,3.64124497,135.73,135.7,0.87977256]
[1767591975028,3.64124497,135.73,135.71,0.67977256]
[1767591976525,20.78668348,135.75,135.72,0.67977256]
[1767591976825,3.64124497,135.74,135.72,0.67977256]
[1767591977229,4.30795948,135.74,135.7,8.24883643]
[1767591978829,0.36752624,135.73,135.7,8.24883643]
[1767591979331,4.00877121,135.73,135.7,8.24883643]
[1767591981743,0.36752624,135.73,135.7,8.24883643]
[1767591981912,4.00877121,135.73,135.7,8.24883643]
[1767591983136,4.3110121,135.76,135.72,0.67977256]
[1767591983316,0.66976713,135.76,135.72,0.67977256]
[1767591984239,3.3599805,135.78,135.73,3.64124497]
[1767591984540,7.00122547,135.78,135.74,0.67977256]
[1767591985736,7.00122547,135.78,135.74,8.0466493]
[1767591986635,3.3599805,135.78,135.74,8.0466493]
[1767591986935,7.00122547,135.78,135.74,8.0466493]
[1767591987138,4.00574911,135.77,135.74,0.67977256]
[1767591987336,0.36450414,135.77,135.74,0.67977256]
[1767591987650,4.00574911,135.77,135.74,0.67977256]
[1767591988035,2.69021337,135.78,135.75,0.67977256]
[1767591989340,2.69021337,135.78,135.76,8.04571245]
[1767591990045,13.44,135.81,135.78,0.67977256]
[1767591990244,13.44,135.81,135.78,0.61977256]
[1767591991245,13.82454033,135.81,135.78,0.61977256]
[1767591991546,0.38775771,135.79,135.74,97.89819934]
[1767591991837,3.64124497,135.8,135.74,35.49819934]
[1767591992244,3.64124497,135.8,135.75,0.68807526]
[1767591992545,2.71632637,135.8,135.75,0.68807526]
[1767591992844,0.38454033,135.8,135.76,0.68807526]
[1767591993032,2.71632637,135.8,135.76,0.68807526]
[1767591994143,0.38454033,135.8,135.76,8.05389368]
[1767591994444,2.71632637,135.8,135.76,8.05389368]
[1767591995848,0.38454033,135.8,135.76,8.05389368]
[1767591996043,14.14952856,135.81,135.77,0.68807526]
[1767591996344,0.38454033,135.8,135.77,0.68807526]
[1767591997382,2.71632637,135.8,135.77,0.68807526]
[1767591998255,2.71632637,135.8,135.76,70.45584824]
[1767591998453,0.70627868,135.79,135.76,70.45584824]
[1767591998653,0.38775771,135.78,135.76,62.4]
[1767591998875,0.38775771,135.78,135.75,70.45637132]
[1767592000058,0.70868835,135.79,135.75,70.45637132]
[1767592000263,3.04047439,135.79,135.75,70.45637132]
[1767592001071,2.33178604,135.78,135.75,70.45637132]
[1767592001672,0.70868835,135.79,135.76,0.69002982]
[1767592001847,2.71715818,135.78,135.75,69.7663415]
[1767592002270,2.71715818,135.78,135.75,70.45637132]
[1767592002570,2.33178604,135.78,135.76,8.05592344]
[1767592003853,2.33178604,135.79,135.76,8.05592344]
[1767592004460,2.71715818,135.79,135.76,8.05592344]
[1767592004865,0.70868835,135.81,135.77,0.69002982]
[1767592005067,3.04047439,135.81,135.77,0.69002982]
[1767592005269,2.71715818,135.82,135.78,0.69002982]
[1767592005775,0.70545519,135.81,135.78,0.69002982]
[1767592006283,3.03724123,135.81,135.78,0.69002982]
[1767592007173,2.33178604,135.81,135.78,0.69002982]
[1767592007773,0.38537214,135.82,135.78,0.69002982]
[1767592007979,2.33178604,135.81,135.78,0.69002982]
[1767592008271,2.33178604,135.81,135.77,7.36506886]
[1767592008272,3.03724123,135.81,135.77,8.05509868]
[1767592009379,0.70545519,135.81,135.77,8.05509868]
[1767592009565,3.03724123,135.81,135.77,8.05509868]
[1767592010079,0.70545519,135.81,135.77,8.05509868]
[1767592010473,2.33178604,135.8,135.77,8.05509868]
[1767592011189,3.0340724,135.79,135.76,8.05580798]
[1767592011653,2.33178604,135.79,135.76,8.05580798]
[1767592011858,0.38537214,135.79,135.76,8.05580798]
[1767592012073,2.33178604,135.79,135.77,0.69002982]
[1767592012384,2.33178604,135.79,135.76,0.69002982]
[1767592012568,0.70868835,135.8,135.76,0.69002982]
[1767592012879,2.33178604,135.79,135.76,0.69002982]
[1767592013368,2.33178604,135.79,135.77,0.69002982]
[1767592014887,3.04047439,135.8,135.77,0.69002982]
[1767592015683,0.70868835,135.8,135.77,0.69002982]
[1767592015904,3.04047439,135.8,135.77,0.69002982]
[1767592018187,2.33178604,135.79,135.77,0.69002982]
[1767592018786,0.70868835,135.8,135.77,0.69002982]
[1767592018989,2.71715818,135.81,135.77,8.05535066]
[1767592019164,0.70545519,135.8,135.77,8.05535066]
[1767592019872,0.70545519,135.8,135.75,62.4]
[1767592019873,0.70228636,135.77,135.75,62.4]
[1767592020075,0.39171011,135.76,135.73,0.69002982]
[1767592020489,2.33178604,135.75,135.73,0.69002982]
[1767592022191,0.68904654,135.75,135.72,0.66337317]
[1767592022391,0.68904654,135.76,135.72,0.66337317]
[1767592022691,2.33178604,135.76,135.73,0.66337317]
[1767592023071,2.33178604,135.75,135.73,0.66337317]
[1767592025180,0.68620425,135.76,135.73,0.66337317]
[1767592025597,3.01799029,135.76,135.73,0.66337317]
[1767592027797,2.33178604,135.75,135.73,0.66337317]
[1767592028882,0.68620425,135.76,135.73,0.66337317]
[1767592029077,0.68904654,135.78,135.74,0.66337317]
[1767592029276,2.33178604,135.77,135.74,0.60337317]
[1767592029498,2.33178604,135.76,135.74,0.60337317]
[1767592030001,2.79600357,135.77,135.74,0.60337317]
[1767592030398,0.46421753,135.77,135.74,0.60337317]
[1767592031889,2.79600357,135.77,135.74,0.60337317]
[1767592032291,0.46421753,135.77,135.74,0.60337317]
[1767592032491,2.79600357,135.77,135.74,0.60337317]
[1767592032684,2.79600357,135.77,135.73,70.43079494]
[1767592032685,0.68679825,135.76,135.73,70.43079494]
[1767592032887,0.68904654,135.77,135.73,70.43079494]
[1767592033182,3.02083258,135.77,135.73,70.43079494]
[1767592033602,1.22725793,135.8,135.75,0.66337317]
[1767592033898,1.22725793,135.8,135.77,0.66337317]
[1767592034502,0.46421753,135.79,135.75,0.66337317]
[1767592034709,2.33178604,135.77,135.75,0.66337317]
[1767592034909,2.79822938,135.77,135.74,0.66337317]
[1767592035286,2.79822938,135.77,135.73,7.36745462]
[1767592035492,2.33178604,135.76,135.73,8.03082779]
[1767592035802,3.01638074,135.76,135.73,8.03082779]
[1767592036001,0.68904654,135.78,135.73,8.03082779]
[1767592036201,0.68904654,135.78,135.74,0.66337317]
[1767592036403,2.33178604,135.77,135.74,8.03038361]
[1767592036914,2.79600357,135.77,135.74,8.03038361]
[1767592038616,0.68904654,135.79,135.75,0.66337317]
[1767592038913,14.10904654,135.79,135.75,0.66337317]
[1767592039510,16.44083258,135.79,135.75,0.66337317]
[1767592039726,16.44083258,135.79,135.75,8.02976832]
[1767592041394,2.33178604,135.78,135.75,8.02976832]
[1767592042617,2.79600357,135.78,135.75,8.02976832]
[1767592043616,0.46421753,135.78,135.75,8.02976832]
[1767592043806,16.44083258,135.79,135.74,7.36702519]
[1767592044120,2.79600357,135.78,135.75,0.66337317]
[1767592044720,13.42,135.79,135.75,0.66337317]
[1767592045020,0.46421753,135.77,135.74,7.36702519]
[1767592045219,2.33178604,135.8,135.74,7.36702519]
[1767592045409,2.33178604,135.76,135.74,7.36702519]
[1767592045604,2.33178604,135.77,135.74,8.03039836]
[1767592045933,2.33178604,135.8,135.73,0.66337317]
[1767592046218,2.33178604,135.77,135.73,0.66337317]
[1767592047020,20.78431254,135.79,135.74,0.66337317]
[1767592047224,2.33178604,135.77,135.74,0.66337317]
[1767592047826,2.33178604,135.77,135.74,8.03017896]
[1767592048014,2.63473919,135.78,135.75,0.66337317]
[1767592048322,2.63473919,135.78,135.74,8.03017896]
[1767592048323,2.33178604,135.77,135.74,8.03017896]
[1767592048515,0.30295315,135.78,135.75,0.66337317]
[1767592048716,13.42,135.79,135.75,0.66337317]
[1767592048717,16.05473919,135.79,135.75,0.66337317]
[1767592048921,2.63473919,135.79,135.75,0.66337317]
[1767592049304,7.66605767,135.82,135.76,0.66337317]
[1767592049501,15.85078604,135.81,135.76,0.66337317]
[1767592049905,13.519,135.81,135.76,0.66337317]
[1767592050106,15.85078604,135.81,135.76,0.66337317]
[1767592050320,13.519,135.81,135.76,0.66337317]
[1767592050503,13.519,135.81,135.77,8.02877053]
[1767592050504,2.33178604,135.8,135.77,8.02877053]
[1767592051530,2.33178604,135.8,135.77,0.66337317]
[1767592051735,2.43280518,135.79,135.76,0.72281783]
[1767592052109,2.43280518,135.79,135.76,8.0887191]
[1767592052711,2.33178604,135.79,135.76,8.0887191]
[1767592053517,2.63473919,135.8,135.76,8.0887191]
[1767592054536,3.74238506,135.79,135.76,0.72281783]
[1767592054916,3.64338506,135.79,135.76,0.72281783]
[1767592055213,0.30295315,135.8,135.76,0.72281783]
[1767592055426,3.64338506,135.79,135.76,0.72281783]
[1767592055829,3.64338506,135.78,135.75,70.48912664]
[1767592056932,3.64338506,135.78,135.75,8.08912664]
[1767592057310,3.64338506,135.76,135.74,7.36697457]
[1767592057912,0.10101914,135.77,135.74,8.02474913]
[1767592058233,3.64338506,135.76,135.74,8.02474913]
[1767592059142,13.72295315,135.78,135.75,0.65777456]
[1767592059318,13.72295315,135.78,135.76,0.65777456]
[1767592059319,13.42,135.78,135.76,0.65777456]
[1767592059634,13.42,135.78,135.75,8.02423744]
[1767592059835,17.06338506,135.78,135.75,8.02423744]
[1767592060538,13.42,135.78,135.75,8.02423744]
[1767592060739,17.06338506,135.78,135.75,8.02423744]
[1767592061036,17.06338506,135.78,135.75,0.65777456]
[1767592061741,17.03338507,135.78,135.75,0.65777456]
[1767592062033,17.00338508,135.78,135.75,0.65777456]
[1767592062334,13.36000002,135.78,135.76,0.65777456]
[1767592063310,27.11269729,135.83,135.78,0.65777456]
[1767592063311,13.519,135.82,135.78,0.65777456]
[1767592063543,13.42,135.82,135.79,0.65777456]
[1767592064913,17.06338506,135.82,135.79,0.65777456]
[1767592065120,13.42,135.82,135.79,0.65777456]
[1767592065318,17.06338506,135.82,135.79,0.65777456]
[1767592066238,13.42,135.82,135.79,0.65777456]
[1767592067038,3.99996184,135.83,135.79,0.65777456]
[1767592067232,13.77657678,135.83,135.79,0.65777456]
[1767592067439,3.64338506,135.82,135.79,0.65777456]
[1767592067744,17.41996184,135.83,135.79,0.65777456]
[1767592068340,0.10101914,135.82,135.76,0.65777456]
[1767592068535,13.77657678,135.83,135.76,0.65777456]
[1767592068536,3.64338506,135.77,135.76,0.65777456]
[1767592068925,13.71891467,135.8,135.76,0.65777456]
[1767592068926,3.64338506,135.78,135.76,0.65777456]
[1767592071228,3.64338506,135.77,135.75,0.65777456]
[1767592072850,3.64338506,135.78,135.75,0.65777456]
[1767592076446,3.64338506,135.8,135.76,0.65777456]
[1767592076651,17.06338506,135.8,135.76,0.65777456]
[1767592077551,17.06338506,135.8,135.77,0.65777456]
[1767592079857,3.64338506,135.79,135.77,0.65777456]
[1767592081057,13.42,135.8,135.77,0.65777456]
[1767592081058,7.66021652,135.81,135.77,0.65777456]
[1767592081240,0.35657678,135.83,135.78,0.66643029]
[1767592081241,7.71914062,135.83,135.78,0.66643029]
[1767592081559,13.42,135.82,135.79,0.66643029]
[1767592082158,13.42,135.82,135.79,0.60643029]
[1767592083861,13.42,135.82,135.76,18.41411654]
[1767592084062,3.64338506,135.78,135.71,70.75013837]
[1767592084262,3.64338506,135.77,135.73,0.66643029]
[1767592084863,13.52417427,135.79,135.73,0.66643029]
[1767592085059,3.64338506,135.77,135.74,7.36698238]
[1767592085265,3.64338506,135.77,135.75,0.66643029]
[1767592086568,20.88867994,135.79,135.75,0.66643029]
[1767592086768,3.64338506,135.78,135.75,0.66643029]
[1767592086953,20.88867994,135.79,135.75,0.66643029]
[1767592087264,3.64338506,135.78,135.75,0.66643029]
[1767592089164,20.88867994,135.79,135.75,0.66643029]
[1767592089371,3.64338506,135.78,135.75,0.66643029]
[1767592091249,3.64338506,135.77,135.75,0.66643029]
[1767592092767,3.64338506,135.76,135.74,0.66643029]
[1767592093365,3.64338506,135.77,135.74,0.66643029]
[1767592096077,3.64338506,135.76,135.73,0.66643029]
[1767592096976,3.64338506,135.76,135.73,8.03391895]
[1767592097361,3.64338506,135.76,135.74,0.66643029]
[1767592100970,4.00369867,135.77,135.74,0.66643029]
[1767592101578,3.64338506,135.77,135.74,0.66643029]
[1767592102374,4.00369867,135.77,135.74,0.66643029]
[1767592103884,3.64338506,135.77,135.74,0.66643029]
[1767592105282,3.64338506,135.76,135.74,0.66643029]
[1767592107384,3.64338506,135.77,135.74,0.66643029]
[1767592110285,3.74238506,135.77,135.74,0.66643029]
[1767592110487,0.36031361,135.76,135.73,7.36748866]
[1767592111085,0.36031361,135.76,135.73,8.04927824]
[1767592112092,13.80295315,135.78,135.74,0.68178958]
[1767592112276,0.36295315,135.78,135.74,4.32517464]
[1767592112475,0.36295315,135.79,135.75,0.68178958]
[1767592112976,0.36295315,135.79,135.76,7.36593989]
[1767592113182,0.36295315,135.79,135.76,8.04772947]
[1767592113498,17.44633821,135.8,135.77,0.68178958]
[1767592113691,17.08338506,135.8,135.77,0.68178958]
[1767592114094,17.18238506,135.8,135.77,0.68178958]
[1767592114294,13.539,135.8,135.77,0.68178958]
[1767592114472,15.77173267,135.8,135.77,0.68178958]
[1767592117395,13.44,135.8,135.77,0.68178958]
[1767592118998,13.44,135.8,135.76,8.04423186]
[1767592118999,13.80031361,135.8,135.76,8.04423186]
[1767592119187,13.44,135.8,135.77,0.67829197]
[1767592119798,15.77173267,135.8,135.77,0.67829197]
[1767592123497,8.08181307,135.83,135.78,0.67829197]
[1767592123702,2.33173267,135.82,135.78,0.67829197]
[1767592123901,2.33173267,135.81,135.78,0.67829197]
[1767592124399,14.13927727,135.83,135.78,0.67829197]
[1767592124700,2.33173267,135.81,135.78,0.67829197]
[1767592125607,14.13927727,135.83,135.78,8.04279544]
[1767592125788,14.13927727,135.83,135.79,0.67829197]
[1767592125988,0.099,135.82,135.79,0.67829197]
[1767592126302,2.33173267,135.8,135.79,0.67829197]
[1767592128092,2.33173267,135.8,135.77,70.44347405]
[1767592128408,2.33173267,135.79,135.77,70.44347405]
[1767592129912,2.33173267,135.8,135.77,70.44347405]
[1767592130207,2.33173267,135.8,135.77,8.04347405]
[1767592132212,0.36295315,135.81,135.77,8.04347405]
[1767592132419,2.33173267,135.8,135.77,8.04347405]
[1767592134008,0.36295315,135.81,135.77,8.04347405]
[1767592134216,2.33173267,135.8,135.77,8.04347405]
[1767592135611,0.36295315,135.81,135.77,8.04347405]
[1767592135809,2.33173267,135.8,135.77,8.04347405]
[1767592136316,2.33173267,135.8,135.78,0.67829197]
[1767592138519,2.69468582,135.81,135.78,0.67829197]
[1767592139194,0.099,135.8,135.77,7.36533461]
[1767592140618,0.099,135.8,135.76,7.36593989]
[1767592140827,2.43073267,135.8,135.77,0.69331678]
[1767592141122,2.33173267,135.8,135.77,0.69331678]
[1767592142730,2.33173267,135.8,135.77,8.05859909]
[1767592143718,2.33173267,135.8,135.77,7.36528231]
[1767592143921,2.33173267,135.8,135.78,0.69331678]
[1767592144833,0.10161314,135.78,135.76,62.4]
[1767592145001,2.33173267,135.77,135.74,0.69331678]
[1767592145201,2.33173267,135.76,135.74,0.69331678]
[1767592145420,2.33173267,135.75,135.73,62.4]
[1767592145627,13.42,135.79,135.72,0.69331678]
[1767592145811,2.33173267,135.74,135.72,0.69331678]
[1767592146209,2.33173267,135.73,135.71,0.69331678]
[1767592146506,13.42,135.75,135.71,0.69331678]
[1767592146715,2.33173267,135.73,135.71,0.69331678]
[1767592147023,13.42,135.75,135.71,0.69331678]
[1767592147224,2.33173267,135.74,135.71,0.69331678]
[1767592149317,2.33173267,135.74,135.72,0.69331678]
[1767592149514,15.75173267,135.75,135.72,0.69331678]
[1767592150015,13.42,135.75,135.72,0.69331678]
[1767592150219,2.33173267,135.75,135.72,0.69331678]
[1767592154134,2.33173267,135.75,135.72,8.06142184]
[1767592155816,2.33173267,135.75,135.73,0.69331678]
[1767592157538,13.519,135.76,135.73,0.69331678]
[1767592157741,2.33173267,135.75,135.73,0.69331678]
[1767592158548,13.42,135.76,135.73,0.69331678]
[1767592158733,2.33173267,135.75,135.73,0.69331678]
[1767592159034,2.43233984,135.75,135.72,7.36810506]
[1767592161540,2.33173267,135.75,135.73,0.69331678]
[1767592162441,0.35632412,135.79,135.74,0.69331678]
[1767592162635,0.35632412,135.79,135.75,0.69331678]
[1767592162816,0.35632412,135.79,135.77,0.69331678]
[1767592163840,0.35632412,135.79,135.78,0.69331678]
[1767592166057,2.33173267,135.81,135.79,0.69331678]
[1767592166240,2.33173267,135.81,135.79,0.63331678]
[1767592166826,0.26383822,135.8,135.74,0.73670251]
[1767592167020,2.33173267,135.79,135.73,20.75018051]
[1767592167541,3.0093968,135.79,135.73,20.75018051]
[1767592167740,2.33173267,135.79,135.73,20.75018051]
[1767592168144,2.33173267,135.79,135.74,0.69331678]
[1767592168844,2.33173267,135.78,135.75,0.69331678]
[1767592169045,2.33173267,135.79,135.76,0.69331678]
[1767592170145,0.67766413,135.8,135.76,0.69331678]
[1767592170448,0.67766413,135.8,135.77,0.69331678]
[1767592170747,3.0093968,135.8,135.77,0.69331678]
[1767592173348,2.33173267,135.79,135.77,0.69331678]
[1767592174444,3.0093968,135.8,135.77,0.69331678]
[1767592176242,2.33173267,135.81,135.78,0.6806464]
[1767592176630,3.64279233,135.81,135.78,0.6806464]
[1767592177150,17.16179233,135.82,135.79,0.6806464]
[1767592178450,13.519,135.82,135.79,0.6806464]
[1767592178649,13.519,135.82,135.78,8.04542563]
[1767592178650,17.16179233,135.82,135.78,8.04542563]
[1767592179252,0.67187748,135.81,135.78,8.04542563]
[1767592179854,0.67187748,135.81,135.78,7.36477923]
[1767592180242,0.67187748,135.81,135.78,8.04542563]
[1767592180550,4.31466981,135.81,135.78,8.04542563]
[1767592181456,0.67187748,135.81,135.78,8.04542563]
[1767592184755,11.67811633,135.81,135.78,0.6806464]
[1767592184964,4.30899832,135.79,135.76,0.6806464]
[1767592185267,17.72899832,135.79,135.76,0.6806464]
[1767592186871,14.08620599,135.79,135.76,0.6806464]
[1767592187165,17.72899832,135.79,135.76,0.6806464]
[1767592190670,3.64279233,135.78,135.76,0.6806464]
[1767592197576,14.08620599,135.79,135.76,0.6806464]
[1767592197875,17.72899832,135.79,135.76,0.6806464]
[1767592198062,3.75313588,135.78,135.75,0.6806464]
[1767592199870,0.11034355,135.78,135.75,0.6806464]
[1767592200070,0.66064737,135.77,135.75,0.6806464]
[1767592200279,4.32045646,135.78,135.75,0.6806464]
[1767592200656,0.67766413,135.78,135.75,0.6806464]
[1767592200855,17.06279233,135.79,135.75,0.6806464]
[1767592201049,3.64279233,135.78,135.74,0.71808455]
[1767592201267,3.64279233,135.76,135.73,0.71808455]
[1767592201576,13.42,135.75,135.72,0.71808455]
[1767592202982,3.64279233,135.74,135.73,0.71808455]
[1767592203370,3.64279233,135.74,135.71,0.71808455]
[1767592203675,20.78655394,135.75,135.7,0.2]
[1767592203881,3.64279233,135.73,135.7,0.91808455]
[1767592204080,3.61279234,135.73,135.7,0.91808455]
[1767592204278,3.64279233,135.73,135.7,8.28723487]
[1767592204781,20.78655394,135.75,135.7,8.28723487]
[1767592204988,3.64279233,135.73,135.7,8.28723487]
[1767592205285,3.64279233,135.74,135.71,0.71808455]
[1767592205992,3.64279233,135.73,135.71,0.71808455]
[1767592206287,20.78655394,135.75,135.71,0.71808455]
[1767592206495,3.64279233,135.73,135.71,0.71808455]
[1767592206957,17.08279233,135.73,135.71,0.71808455]
[1767592208378,3.64279233,135.73,135.71,0.71808455]
[1767592208563,17.08279233,135.73,135.71,0.71808455]
[1767592210477,3.64279233,135.72,135.71,0.71808455]
[1767592210697,3.61279234,135.72,135.71,0.71808455]
[1767592211303,17.05279234,135.72,135.71,0.71808455]
[1767592211484,17.02279235,135.72,135.71,0.71808455]
[1767592212009,13.44,135.72,135.71,0.71808455]
[1767592212389,17.08279233,135.72,135.7,0.91808455]
[1767592214096,13.44,135.72,135.7,0.2]
[1767592214401,17.08279233,135.72,135.7,0.2]
[1767592214793,13.44,135.72,135.7,0.91808455]
[1767592215102,17.08279233,135.72,135.7,0.91808455]
[1767592215603,17.08279233,135.72,135.7,0.2]
[1767592216002,17.08279233,135.72,135.7,0.91808455]
[1767592217404,13.44,135.72,135.7,0.91808455]
[1767592217704,17.08279233,135.72,135.7,0.91808455]
[1767592217901,17.08279233,135.72,135.7,0.2]
[1767592218408,17.08279233,135.72,135.7,0.91808455]
[1767592218710,17.08279233,135.72,135.7,0.2]
[1767592218911,3.64279233,135.71,135.69,0.91808455]
[1767592219087,13.44,135.72,135.69,0.91808455]
[1767592219409,3.64279233,135.71,135.69,0.91808455]
[1767592219596,3.6140254,135.71,135.69,0.91808455]
[1767592219799,20.80839481,135.72,135.69,0.91808455]
[1767592219997,3.64279233,135.71,135.69,0.91808455]
[1767592224313,17.08279233,135.71,135.69,0.2]
[1767592225211,17.05279233,135.71,135.69,0.2]
[1767592225512,3.64279233,135.71,135.69,0.2]
[1767592225714,17.08279233,135.71,135.69,0.2]
[1767592226410,13.44,135.71,135.69,0.2]
[1767592226613,17.08279233,135.71,135.69,0.2]
[1767592227400,13.44,135.7,135.69,0.2]
[1767592227601,13.41000001,135.7,135.69,0.2]
[1767592229515,13.41000001,135.7,135.69,0.91808455]
[1767592232820,17.05279234,135.7,135.69,0.91808455]
[1767592233314,13.41000001,135.7,135.69,0.91808455]
[1767592239225,13.38000002,135.7,135.69,0.91808455]
[1767592240808,15.77455165,135.71,135.69,0.91808455]
[1767592241215,13.44,135.71,135.69,0.91808455]
[1767592241416,15.77455165,135.71,135.69,0.2]
[1767592242135,13.44,135.71,135.69,0.2]
[1767592242313,15.77455165,135.71,135.69,0.2]
[1767592242726,2.33455165,135.7,135.69,0.2]
[1767592245030,2.33455165,135.7,135.68,0.2]
[1767592245235,20.80871939,135.71,135.68,0.2]
[1767592245410,2.33455165,135.69,135.68,0.2]
[1767592245612,2.33455165,135.69,135.66,63.26198627]
[1767592245929,15.77455165,135.68,135.66,63.26198627]
[1767592246133,15.77455165,135.68,135.66,0.86198627]
[1767592246312,2.33455165,135.67,135.66,0.86198627]
[1767592246512,15.77455165,135.68,135.66,0.86198627]
[1767592249433,13.44,135.68,135.66,0.86198627]
[1767592249736,15.77455165,135.68,135.66,0.86198627]
[1767592252840,15.77455165,135.68,135.66,0.2]
[1767592253043,13.44,135.68,135.66,0.2]
[1767592253223,15.77455165,135.68,135.66,0.2]
[1767592255224,13.44,135.68,135.66,0.2]
[1767592255426,15.77455165,135.68,135.66,0.2]
[1767592255942,15.77455165,135.68,135.67,0.66198627]
[1767592256241,15.77455165,135.68,135.66,0.2]